bitfinex-derivatives/quotes_BNBF0:USTF0_20250609
["timestamp","ask_amount","ask_price","bid_price","bid_amount"]
[1749430727762,0.071,652.27,651.77,3.81921911]
[1749430728263,0.071,652.27,651.55,5.34952445]
[1749430728558,0.071,652.27,651.41,3.81921911]
[1749430728760,0.071,652.27,651.41,4.1262454]
[1749430729259,0.071,652.27,651.41,0.30702629]
[1749430734968,0.071,652.27,651.43,3.81921911]
[1749430735767,0.071,652.27,651.42,3.81921911]
[1749430738069,0.071,652.27,651.59,3.81921911]
[1749430739868,0.071,652.27,651.6,3.81921911]
[1749430741268,0.071,652.27,651.61,3.81921911]
[1749430744871,0.071,652.27,651.81,3.81921911]
[1749430750774,0.071,652.27,651.63,3.81921911]
[1749430751478,0.26676888,652.29,651.63,3.81921911]
[1749430753378,0.26676888,652.29,651.57,3.81921911]
[1749430753982,0.26676888,652.29,651.58,3.81921911]
[1749430754880,0.26676888,652.29,651.59,3.81921911]
[1749430755281,0.071,652.28,651.59,3.81921911]
[1749430755586,0.071,652.28,651.55,3.81921911]
[1749430756588,0.071,652.28,651.54,3.81921911]
[1749430760686,0.071,652.28,651.67,3.81921911]
[1749430761488,0.071,652.28,651.65,3.81921911]
[1749430763287,0.071,652.28,651.8,3.81921911]
[1749430763592,0.071,652.28,651.79,3.81921911]
[1749430764188,0.071,652.28,651.8,3.81921911]
[1749430764591,0.071,652.28,651.81,3.81921911]
[1749430765191,0.071,652.28,651.7,3.81921911]
[1749430765594,0.071,652.28,651.75,3.81921911]
[1749430766397,0.071,652.28,651.63,3.81921911]
[1749430768097,0.071,652.28,651.64,3.81921911]
[1749430768797,0.071,652.28,651.63,3.81921911]
[1749430771506,0.071,652.28,651.64,3.81921911]
[1749430773606,0.071,652.28,651.56,3.81921911]
[1749430774003,0.071,652.28,651.55,3.81921911]
[1749430774805,0.071,652.28,651.6,3.81921911]
[1749430775406,0.071,652.28,651.62,3.81921911]
[1749430776408,0.071,652.28,651.76,3.81921911]
[1749430777609,0.071,652.28,651.54,5.34952445]
[1749430777610,0.071,652.28,651.79,3.81921911]
[1749430778508,0.071,652.28,651.8,3.81921911]
[1749430781409,0.26676888,652.29,651.8,3.81921911]
[1749430783412,0.26676888,652.29,651.78,3.81921911]
[1749430784412,0.071,652.28,651.78,3.81921911]
[1749430784910,0.071,652.28,651.79,3.81921911]
[1749430788013,0.071,652.28,651.8,3.81921911]
[1749430788415,0.071,652.28,651.72,3.81921911]
[1749430789809,0.071,652.28,651.69,3.81921911]
[1749430792015,0.071,652.28,651.7,3.81921911]
[1749430793318,0.071,652.28,651.69,3.81921911]
[1749430793714,0.071,652.28,651.7,3.81921911]
[1749430795214,0.071,652.28,651.71,3.81921911]
[1749430796419,0.26676888,652.29,651.74,3.81921911]
[1749430798022,0.26676888,652.29,651.75,3.81921911]
[1749430798422,0.26676888,652.29,651.83,3.81921911]
[1749430800122,0.071,652.28,651.83,3.81921911]
[1749430800620,0.071,652.28,651.82,3.81921911]
[1749430802022,0.071,652.28,651.83,3.81921911]
[1749430803325,0.071,652.28,651.76,3.81921911]
[1749430805628,0.071,652.28,651.72,3.81921911]
[1749430806325,0.071,652.28,651.73,3.81921911]
[1749430807923,0.071,652.28,651.75,3.81921911]
[1749430808324,0.071,652.28,651.76,3.81921911]
[1749430808923,0.071,652.28,651.75,3.81921911]
[1749430809324,0.071,652.28,651.72,3.81921911]
[1749430811025,0.071,652.28,651.75,3.81921911]
[1749430812027,0.071,652.28,651.82,3.81921911]
[1749430812526,0.071,652.28,651.62,3.81921911]
[1749430812928,0.071,652.28,651.6,5.34952445]
[1749430813132,0.071,652.28,651.59,3.81921911]
[1749430813329,0.071,652.28,651.65,3.81921911]
[1749430813927,0.071,652.28,651.41,0.30702629]
[1749430813928,0.071,652.28,651.66,3.81921911]
[1749430814333,0.071,652.28,651.65,3.81921911]
[1749430815533,0.071,652.28,651.66,3.81921911]
[1749430816432,0.071,652.28,651.7,3.81921911]
[1749430818338,0.071,652.28,651.68,3.81921911]
[1749430818835,0.071,652.28,651.69,3.81921911]
[1749430819237,0.26672287,652.5,651.63,3.81921911]
[1749430820237,0.26672287,652.5,651.62,3.81921911]
[1749430820442,0.26672287,652.5,651.62,4.12614646]
[1749430820640,0.26672287,652.5,651.64,3.81921911]
[1749430821639,0.071,652.49,651.63,3.81921911]
[1749430821842,0.071,652.49,651.64,0.30691793]
[1749430822142,0.071,652.49,651.74,3.81921911]
[1749430822841,0.071,652.49,651.73,3.81921911]
[1749430823541,0.071,652.49,651.64,0.30691793]
[1749430823542,0.071,652.49,651.71,3.81921911]
[1749430823743,0.071,652.49,651.73,3.81921911]
[1749430824142,0.071,652.49,651.72,3.81921911]
[1749430826337,0.071,652.49,651.71,3.81921911]
[1749430828339,0.071,652.49,651.72,3.81921911]
[1749430829137,0.071,652.49,652.01,3.81921911]
[1749430829542,0.071,652.49,652.0,3.81921911]
[1749430830144,0.071,652.49,652.01,3.81921911]
[1749430830943,0.071,652.49,652.03,3.81921911]
[1749430831345,0.071,652.49,652.02,3.81921911]
[1749430832647,0.071,652.49,651.92,3.81921911]
[1749430833741,0.071,652.49,651.86,3.81921911]
[1749430835348,0.071,652.49,651.85,3.81921911]
[1749430839551,0.071,652.49,651.79,3.81921911]
[1749430839954,0.071,652.49,651.8,3.81921911]
[1749430842153,0.071,652.49,651.76,3.81921911]
[1749430843553,0.071,652.49,651.73,3.81921911]
[1749430843955,0.071,652.49,651.68,3.81921911]
[1749430844555,0.071,652.49,651.64,0.30691793]
[1749430844556,0.071,652.49,651.67,3.81921911]
[1749430844756,0.26671061,652.57,651.67,3.81921911]
[1749430844954,0.26671061,652.57,651.71,3.81921911]
[1749430845356,0.26671061,652.57,651.73,3.81921911]
[1749430846260,0.26671061,652.57,651.74,3.81921911]
[1749430848458,0.26671061,652.57,651.76,3.81921911]
[1749430852057,0.26671061,652.57,651.77,3.81921911]
[1749430852459,0.26671061,652.57,651.83,3.81921911]
[1749430852962,0.26671061,652.57,651.82,3.81921911]
[1749430855459,0.26671061,652.57,651.81,3.81921911]
[1749430856662,0.26671061,652.57,651.82,3.81921911]
[1749430857265,0.26671061,652.57,651.83,3.81921911]
[1749430857768,0.26671061,652.57,651.84,3.81921911]
[1749430859064,0.26671061,652.57,651.87,3.81921911]
[1749430861467,0.26671061,652.57,651.88,3.81921911]
[1749430863367,0.26671061,652.57,651.92,3.81921911]
[1749430865571,0.26671061,652.57,651.93,3.81921911]
[1749430867268,0.26671061,652.57,651.94,3.81921911]
[1749430869470,0.26671061,652.57,651.95,3.81921911]
[1749430870074,0.26671061,652.57,651.93,3.81921911]
[1749430871472,0.26671061,652.57,651.72,9.16874356]
[1749430872070,0.26671061,652.57,651.72,3.81921911]
[1749430872575,0.26671061,652.57,651.71,3.81921911]
[1749430873270,0.26671061,652.57,651.64,0.30691793]
[1749430876976,0.26671061,652.57,651.73,3.81921911]
[1749430879377,0.26671061,652.57,651.72,3.81921911]
[1749430879775,0.26671061,652.57,651.71,3.81921911]
[1749430881072,0.26671061,652.57,651.72,3.81921911]
[1749430881474,0.26671061,652.57,651.71,3.81921911]
[1749430882381,0.26671061,652.57,651.72,3.81921911]
[1749430882781,0.26671061,652.57,651.71,3.81921911]
[1749430883778,0.26671061,652.57,651.75,3.81921911]
[1749430890987,0.26671061,652.57,651.71,3.81921911]
[1749430892992,0.26671061,652.57,651.68,3.81921911]
[1749430893292,0.26671061,652.57,651.65,3.81921911]
[1749430893788,0.26671061,652.57,651.64,4.12613704]
[1749430894192,0.26671061,652.57,651.65,3.81921911]
[1749430895087,0.26671061,652.57,651.64,4.12613704]
[1749430895592,0.26671061,652.57,651.65,3.81921911]
[1749430896490,0.26671061,652.57,651.64,0.30691793]
[1749430896895,0.26671061,652.57,651.69,3.81921911]
[1749430898296,0.26671061,652.57,651.7,3.81921911]
[1749430899699,0.26671061,652.57,651.74,3.81921911]
[1749430901099,0.26671061,652.57,651.64,0.30691793]
[1749430901100,0.26671061,652.57,651.75,3.81921911]
[1749430901599,0.26671061,652.57,651.76,3.81921911]
[1749430902798,0.26671061,652.57,651.64,0.30691793]
[1749430908108,0.26671061,652.57,651.27,0.26676274]
[1749430909509,0.30648522,652.56,651.27,0.26676274]
[1749430918914,0.30648522,652.56,651.28,0.30708758]
[1749430922614,0.30648522,652.56,651.41,3.81921911]
[1749430923118,0.30648522,652.56,651.43,3.81921911]
[1749430923521,0.30648522,652.56,651.49,3.81921911]
[1749430924013,0.30648522,652.56,651.48,3.81921911]
[1749430924916,0.30648522,652.56,651.5,3.81921911]
[1749430926320,0.30648522,652.56,651.51,3.81921911]
[1749430929322,0.30648522,652.56,651.52,3.81921911]
[1749430930719,0.30648522,652.56,651.48,3.81921911]
[1749430931223,0.30648522,652.56,651.46,3.81921911]
[1749430931619,0.30648522,652.56,651.44,3.81921911]
[1749430932521,0.30648522,652.56,651.43,3.81921911]
[1749430933422,0.30648522,652.56,651.39,3.81921911]
[1749430933922,0.30648522,652.56,651.34,3.81921911]
[1749430934722,0.30648522,652.56,651.33,3.81921911]
[1749430936122,0.30648522,652.56,651.32,3.81921911]
[1749430936524,0.30648522,652.56,651.31,3.81921911]
[1749430937525,0.30648522,652.56,651.3,3.81921911]
[1749430937926,0.30648522,652.56,651.32,3.81921911]
[1749430938329,0.30648522,652.56,651.31,3.81921911]
[1749430938730,0.30648522,652.56,651.28,4.12630669]
[1749430939725,0.30648522,652.56,651.28,0.30708758]
[1749430942532,1.11104851,652.55,651.28,0.30708758]
[1749430942731,1.41754313,652.54,651.28,0.30708758]
[1749430942932,0.30649931,652.53,651.28,0.30708758]
[1749430945535,1.11104851,652.52,651.28,0.30708758]
[1749430945732,0.30650871,652.51,651.28,0.30708758]
[1749430953642,0.30650871,652.51,651.3,3.81921911]
[1749430954438,0.30650871,652.51,651.31,3.81921911]
[1749430955242,0.30650871,652.51,651.3,3.81921911]
[1749430955837,0.30650871,652.51,651.28,0.30708758]
[1749430955838,0.30650871,652.51,651.31,3.81921911]
[1749430957545,0.30650871,652.51,651.32,3.81921911]
[1749430958443,0.30650871,652.51,651.34,3.81921911]
[1749430959751,0.30650871,652.51,651.35,3.81921911]
[1749430960753,0.30650871,652.51,651.28,0.30708758]
[1749430963260,1.11104851,652.5,651.28,0.30708758]
[1749430963462,0.26671061,652.57,651.28,0.30708758]
[1749430963463,1.41756661,652.49,651.28,0.30708758]
[1749430963660,1.41757131,652.48,651.28,0.30708758]
[1749430963862,1.41757601,652.47,651.28,0.30708758]
[1749430964063,1.41758071,652.46,651.28,0.30708758]
[1749430964258,1.4175854,652.45,651.28,0.30708758]
[1749430964463,1.4175901,652.44,651.28,0.30708758]
[1749430964664,1.4175948,652.43,651.28,0.30708758]
[1749430964864,1.11104851,652.42,651.28,0.30708758]
[1749430965061,1.4176042,652.41,651.28,0.30708758]
[1749430965259,1.4176089,652.4,651.28,0.30708758]
[1749430965563,0.30655569,652.41,651.28,0.30708758]
[1749430965564,1.4176136,652.39,651.28,0.30708758]
[1749430965860,1.4176183,652.38,651.28,0.30708758]
[1749430966064,1.41762299,652.37,651.28,0.30708758]
[1749430966364,1.41762769,652.36,651.28,0.30708758]
[1749430966565,1.41763239,652.35,651.28,0.30708758]
[1749430966763,1.41763709,652.34,651.28,0.30708758]
[1749430966967,1.14380029,652.49,651.28,0.30708758]
[1749430966968,1.41764179,652.33,651.28,0.30708758]
[1749430967163,1.41836465,652.32,651.28,0.30708758]
[1749430967463,1.41836935,652.31,651.28,0.30708758]
[1749430967665,1.41837405,652.3,651.28,0.30708758]
[1749430967864,0.30661208,652.29,651.28,0.30708758]
[1749430975277,0.30661208,652.29,651.16,3.81921911]
[1749430975579,0.30661208,652.29,651.14,3.81921911]
[1749430978074,0.30661208,652.29,651.15,3.81921911]
[1749430978881,0.30661208,652.29,651.01,0.26696636]
[1749430982180,1.11116084,652.28,650.71,3.81921911]
[1749430982483,1.11116084,652.27,650.85,0.26705036]
[1749430982685,1.11116084,652.26,650.85,0.26705036]
[1749430982879,1.41779173,652.25,650.85,0.26705036]
[1749430983079,1.41779643,652.24,650.85,0.26705036]
[1749430983280,0.30664029,652.23,650.85,0.26705036]
[1749430983882,0.30664029,652.23,650.89,3.81921911]
[1749430984384,0.30664029,652.23,650.9,3.81921911]
[1749430984779,0.30664029,652.23,650.88,3.81921911]
[1749430985985,0.30664029,652.23,651.02,3.81921911]
[1749430987481,0.30664029,652.23,651.03,3.81921911]
[1749430988887,0.30664029,652.23,651.04,3.81921911]
[1749430990588,0.30664029,652.23,651.05,3.81921911]
[1749430992787,0.30664029,652.23,650.85,0.26705036]
[1749431002792,0.30664029,652.23,650.94,3.81921911]
[1749431003691,0.30664029,652.23,650.89,3.81921911]
[1749431004193,0.30664029,652.23,650.9,3.81921911]
[1749431004594,0.30664029,652.23,650.89,3.81921911]
[1749431005496,0.30664029,652.23,650.99,3.81921911]
[1749431007698,0.30664029,652.23,651.0,3.81921911]
[1749431008198,0.30664029,652.23,650.91,3.81921911]
[1749431008395,1.11248242,652.22,650.91,3.81921911]
[1749431008600,0.30664969,652.21,650.91,3.81921911]
[1749431009902,0.30664969,652.21,650.93,3.81921911]
[1749431011000,0.30664969,652.21,650.98,3.81921911]
[1749431012398,1.41913211,652.21,650.98,3.81921911]
[1749431012700,1.11248242,652.2,651.0,3.81921911]
[1749431012898,1.41914152,652.19,651.0,3.81921911]
[1749431013099,0.3066638,652.18,650.97,3.81921911]
[1749431013300,1.11248242,652.17,650.97,3.81921911]
[1749431013499,1.41915562,652.16,650.97,3.81921911]
[1749431013705,0.30667791,652.15,650.97,3.81921911]
[1749431014505,1.11248242,652.14,650.96,3.81921911]
[1749431014701,0.30668731,652.13,650.96,3.81921911]
[1749431016001,0.30668731,652.13,650.97,3.81921911]
[1749431016901,1.41916973,652.13,650.98,3.81921911]
[1749431017106,0.30668731,652.13,650.98,3.81921911]
[1749431017306,1.11248242,652.12,650.98,3.81921911]
[1749431017603,0.30669672,652.11,650.99,3.81921911]
[1749431019411,1.11248242,652.1,651.0,3.81921911]
[1749431019904,1.11248242,652.1,651.01,3.81921911]
[1749431020304,1.11248242,652.09,651.0,3.81921911]
[1749431020604,1.11248242,652.08,651.0,3.81921911]
[1749431020809,1.41919795,652.07,650.87,3.81921911]
[1749431021005,1.41920266,652.06,650.87,3.81921911]
[1749431021307,1.41920736,652.05,650.87,3.81921911]
[1749431021509,1.41921206,652.04,650.87,3.81921911]
[1749431021711,1.41921677,652.03,650.88,3.81921911]
[1749431021910,1.41922147,652.02,650.88,3.81921911]
[1749431022110,1.41922618,652.01,650.84,3.81921911]
[1749431022310,0.26709648,651.75,650.84,3.81921911]
[1749431022510,0.26709648,651.75,650.75,3.81921911]
[1749431023410,0.26709648,651.75,650.72,4.39366539]
[1749431023910,0.26709648,651.75,650.72,0.57444628]
[1749431026607,0.26709648,651.75,650.76,3.81921911]
[1749431027012,0.26709648,651.75,650.74,3.81921911]
[1749431029212,0.26709648,651.75,650.73,3.81921911]
[1749431030509,0.26709648,651.75,650.72,0.57444628]
[1749431031210,0.26709648,651.75,650.72,4.39366539]
[1749431032414,0.26709648,651.75,650.81,3.81921911]
[1749431032816,0.26709648,651.75,650.8,3.81921911]
[1749431033316,0.26709648,651.75,650.83,3.81921911]
[1749431033717,0.26709648,651.75,650.93,3.81921911]
[1749431034116,0.26709648,651.75,650.92,3.81921911]
[1749431035217,0.26709648,651.75,650.91,3.81921911]
[1749431036014,0.26709648,651.75,650.77,3.81921911]
[1749431036418,0.26709648,651.75,650.78,3.81921911]
[1749431036814,0.26709648,651.75,650.77,3.81921911]
[1749431038821,0.26709648,651.75,650.72,0.57444628]
[1749431040018,0.26709648,651.75,650.72,4.39366539]
[1749431040524,0.26709648,651.75,650.72,0.57444628]
[1749431048736,0.26709648,651.75,650.72,0.30735185]
[1749431050533,0.26709648,651.75,650.88,3.81921911]
[1749431051840,0.26709648,651.75,650.72,0.30735185]
[1749431051841,0.26709648,651.75,650.89,3.81921911]
[1749431053543,0.26709648,651.75,650.8,3.81921911]
[1749431055447,0.26709648,651.75,650.81,3.81921911]
[1749431055845,0.26709648,651.75,650.8,3.81921911]
[1749431057245,0.26709648,651.75,650.81,3.81921911]
[1749431058949,0.26709648,651.75,650.84,3.81921911]
[1749431061350,0.26709648,651.75,650.85,3.81921911]
[1749431062249,0.26709648,651.75,650.79,3.81921911]
[1749431063452,0.26709648,651.75,650.78,3.81921911]
[1749431064355,0.26709648,651.75,650.79,3.81921911]
[1749431066754,0.26709648,651.75,650.8,3.81921911]
[1749431068955,0.26709648,651.75,650.82,3.81921911]
[1749431069358,0.26709648,651.75,650.83,3.81921911]
[1749431070855,0.26709648,651.75,650.72,0.30735185]
[1749431080560,0.30687083,651.74,650.62,3.81921911]
[1749431081165,0.30687083,651.74,650.61,3.81921911]
[1749431082863,0.30687083,651.74,650.63,3.81921911]
[1749431083266,0.30687083,651.74,650.62,3.81921911]
[1749431083766,0.30687083,651.74,650.56,0.26713748]
[1749431093671,0.30687083,651.74,650.64,3.81921911]
[1749431094675,0.30687083,651.74,650.7,3.81921911]
[1749431095976,0.30687083,651.74,650.76,3.81921911]
[1749431097876,0.30687083,651.74,650.74,3.81921911]
[1749431101979,0.30687083,651.74,650.76,3.81921911]
[1749431102275,0.30687083,651.74,650.73,3.81921911]
[1749431103680,0.30687083,651.74,650.7,3.81921911]
[1749431103878,1.41935325,651.74,650.7,3.81921911]
[1749431104080,1.41935325,651.74,650.5,3.81921911]
[1749431104282,0.30687083,651.74,650.5,3.81921911]
[1749431104677,0.30687083,651.74,650.52,3.81921911]
[1749431106184,0.30687083,651.74,650.5,3.81921911]
[1749431107485,0.30687083,651.74,650.49,3.81921911]
[1749431109487,1.41935325,651.74,650.43,0.26720312]
[1749431109684,0.30687083,651.74,650.43,0.26720312]
[1749431110085,0.30687083,651.74,650.43,0.57469201]
[1749431119596,0.30687083,651.74,650.71,3.81921911]
[1749431119995,0.30687083,651.74,650.7,3.81921911]
[1749431120397,0.30687083,651.74,650.72,3.81921911]
[1749431121297,0.30687083,651.74,650.73,3.81921911]
[1749431122498,0.30687083,651.74,650.74,3.81921911]
[1749431125397,0.30687083,651.74,650.67,3.81921911]
[1749431126301,0.30687083,651.74,650.69,3.81921911]
[1749431127804,0.30687083,651.74,650.74,3.81921911]
[1749431128103,0.30687083,651.74,650.9,3.81921911]
[1749431128704,0.30687083,651.74,650.43,0.57469201]
[1749431128905,0.30687083,651.74,650.44,0.30748416]
[1749431133708,0.30687083,651.74,650.51,3.81921911]
[1749431133906,0.30687083,651.74,650.51,4.12667018]
[1749431134907,0.30687083,651.74,650.51,0.30745107]
[1749431138710,0.30687083,651.74,650.73,3.81921911]
[1749431142511,0.30687083,651.74,650.55,3.81921911]
[1749431143014,0.30687083,651.74,650.51,0.30745107]
[1749431143410,0.30687083,651.74,650.57,3.81921911]
[1749431143814,0.30687083,651.74,650.51,0.30745107]
[1749431144310,1.42543359,651.74,650.51,0.30745107]
[1749431144912,0.30687083,651.74,650.51,0.30745107]
[1749431145111,0.30687083,651.74,650.55,3.81921911]
[1749431146117,0.30687083,651.74,650.54,3.81921911]
[1749431146817,0.30687083,651.74,650.56,3.81921911]
[1749431151117,0.30687083,651.74,650.61,3.81921911]
[1749431151517,0.30687083,651.74,650.6,3.81921911]
[1749431152416,0.30687083,651.74,650.7,3.81921911]
[1749431153320,1.42543359,651.74,650.72,3.81921911]
[1749431153721,1.42543359,651.74,650.68,3.81921911]
[1749431154222,0.30687083,651.74,650.7,3.81921911]
[1749431154522,1.42543359,651.74,650.7,3.81921911]
[1749431154821,1.42543359,651.74,650.69,3.81921911]
[1749431155724,1.11856276,651.73,650.69,3.81921911]
[1749431156025,0.30688025,651.72,650.51,0.30745107]
[1749431159720,0.30688025,651.72,650.51,4.12667018]
[1749431160623,0.30688025,651.72,650.52,3.81921911]
[1749431161124,0.30688025,651.72,650.51,0.30745107]
[1749431162325,1.11743273,651.71,650.51,0.30745107]
[1749431162523,1.11743273,651.7,650.51,0.30745107]
[1749431162719,1.11743273,651.69,650.51,0.30745107]
[1749431162920,1.42433182,651.68,650.51,0.30745107]
[1749431163220,1.42433653,651.67,650.51,0.30745107]
[1749431163420,1.42434124,651.66,650.51,0.30745107]
[1749431163621,0.30691322,651.65,650.51,0.30745107]
[1749431174232,0.30691322,651.65,650.52,3.81921911]
[1749431174632,0.30691322,651.65,650.55,3.81921911]
[1749431177834,0.30691322,651.65,650.57,3.81921911]
[1749431178335,0.30691322,651.65,650.54,3.81921911]
[1749431178631,0.30691322,651.65,650.57,3.81921911]
[1749431179731,0.30691322,651.65,650.62,3.81921911]
[1749431180834,0.30691322,651.65,650.57,3.81921911]
[1749431182637,0.30691322,651.65,650.59,3.81921911]
[1749431183637,0.30691322,651.65,650.65,3.81921911]
[1749431184437,0.30691322,651.65,650.51,0.30745107]
[1749431185136,0.30691322,651.65,650.27,0.26723492]
[1749431195446,0.30691322,651.65,650.5,3.81921911]
[1749431196247,0.30691322,651.65,650.51,3.81921911]
[1749431196649,0.30691322,651.65,650.52,3.81921911]
[1749431197345,1.1150405,651.64,650.47,3.81921911]
[1749431197649,0.30692264,651.63,650.27,0.26723492]
[1749431199346,1.1150405,651.62,650.27,0.26723492]
[1749431199648,1.42197256,651.61,650.27,0.26723492]
[1749431199951,0.30693677,651.6,650.27,0.26723492]
[1749431201249,1.1150405,651.59,650.27,0.26723492]
[1749431201445,1.42198669,651.58,650.27,0.26723492]
[1749431201649,0.3069509,651.57,650.27,0.26723492]
[1749431202246,1.1150405,651.56,650.27,0.26723492]
[1749431202452,0.30696032,651.55,650.27,0.26723492]
[1749431203454,1.1150405,651.54,650.27,0.26723492]
[1749431203652,1.42201024,651.53,650.27,0.26723492]
[1749431203848,1.42201495,651.52,650.27,0.26723492]
[1749431204152,1.42201967,651.51,650.27,0.26723492]
[1749431204447,1.1150405,651.5,650.27,0.26723492]
[1749431204748,1.1150405,651.49,650.27,0.26723492]
[1749431204952,1.1150405,651.48,650.27,0.26723492]
[1749431205251,1.1150405,651.5,650.27,0.26723492]
[1749431205552,1.1150405,651.49,650.27,0.26723492]
[1749431205751,1.1150405,651.48,650.27,0.26723492]
[1749431206053,1.1150405,651.5,650.27,0.26723492]
[1749431206349,1.1150405,651.49,650.27,0.26723492]
[1749431206647,1.1150405,651.48,650.27,0.26723492]
[1749431206851,1.1150405,651.5,650.27,0.26723492]
[1749431207054,1.1150405,651.49,650.27,0.26723492]
[1749431207248,1.1150405,651.5,650.27,0.26723492]
[1749431208349,1.1150405,651.49,650.27,0.26723492]
[1749431208553,1.1150405,651.5,650.27,0.26723492]
[1749431208749,1.1150405,651.49,650.27,0.26723492]
[1749431208952,1.1150405,651.5,650.27,0.26723492]
[1749431209149,1.1150405,651.49,650.27,0.26723492]
[1749431209353,1.1150405,651.5,650.27,0.26723492]
[1749431209550,1.1150405,651.49,650.27,0.26723492]
[1749431209748,1.1150405,651.5,650.27,0.26723492]
[1749431209951,1.1150405,651.49,650.27,0.26723492]
[1749431210153,1.1150405,651.5,650.27,0.26723492]
[1749431210350,1.1150405,651.49,650.27,0.26723492]
[1749431210549,1.1150405,651.5,650.27,0.26723492]
[1749431210852,1.1150405,651.49,650.27,0.26723492]
[1749431211154,1.1150405,651.5,650.27,0.26723492]
[1749431211352,1.1150405,651.49,650.27,0.26723492]
[1749431211552,1.1150405,651.5,650.27,0.26723492]
[1749431211752,1.1150405,651.49,650.27,0.26723492]
[1749431211952,1.1150405,651.48,650.27,0.26723492]
[1749431212151,1.1150405,651.5,650.27,0.26723492]
[1749431212352,1.1150405,651.49,650.27,0.26723492]
[1749431212652,1.1150405,651.48,650.27,0.26723492]
[1749431212956,0.30697917,651.51,650.27,0.26723492]
[1749431212957,1.1150405,651.5,650.29,3.81921911]
[1749431213152,0.30697917,651.51,650.29,3.81921911]
[1749431213456,0.30697917,651.51,650.3,3.81921911]
[1749431213756,0.30697917,651.51,650.27,0.26723492]
[1749431214452,0.30697917,651.51,650.27,4.08645403]
[1749431215052,0.30697917,651.51,650.37,3.81921911]
[1749431215757,0.30697917,651.51,650.38,3.81921911]
[1749431219458,0.30697917,651.51,650.41,3.81921911]
[1749431220359,0.30697917,651.51,650.4,3.81921911]
[1749431220856,0.30697917,651.51,650.51,3.81921911]
[1749431221757,0.30697917,651.51,650.5,3.81921911]
[1749431222562,0.26726366,651.26,650.55,3.81921911]
[1749431223058,0.26726366,651.26,650.49,3.81921911]
[1749431223362,0.26726366,651.26,650.33,5.34952445]
[1749431223961,0.26726366,651.26,650.13,4.08651767]
[1749431224564,0.26726366,651.26,650.13,0.26729856]
[1749431225961,0.26726366,651.26,650.13,0.57492934]
[1749431226165,0.26726366,651.26,650.14,0.30762604]
[1749431226563,0.26726366,651.26,650.14,4.12684515]
[1749431227866,0.26726366,651.26,650.17,3.81921911]
[1749431228265,0.26726366,651.26,650.18,3.81921911]
[1749431228668,0.26726366,651.26,650.23,3.81921911]
[1749431230064,0.26726366,651.26,650.22,3.81921911]
[1749431233268,0.26726366,651.26,650.23,3.81921911]
[1749431234976,0.26726366,651.26,650.41,3.81921911]
[1749431237776,0.26726366,651.26,650.54,3.81921911]
[1749431238178,0.26726366,651.26,650.53,3.81921911]
[1749431239074,0.26726366,651.26,650.55,3.81921911]
[1749431239475,0.26726366,651.26,650.54,3.81921911]
[1749431239872,0.26726366,651.26,650.57,3.81921911]
[1749431240975,0.26726366,651.26,650.56,3.81921911]
[1749431241774,0.26726366,651.26,650.42,3.81921911]
[1749431243180,0.26726366,651.26,650.43,3.81921911]
[1749431243577,0.26726366,651.26,650.36,3.81921911]
[1749431244076,0.26726366,651.26,650.19,3.81921911]
[1749431244480,0.26726366,651.26,650.2,3.81921911]
[1749431245076,0.26726366,651.26,650.19,3.81921911]
[1749431248579,0.26726366,651.26,650.18,3.81921911]
[1749431248982,0.26726366,651.26,650.14,0.30762604]
[1749431248983,0.26726366,651.26,650.19,3.81921911]
[1749431249781,0.26726366,651.26,650.18,3.81921911]
[1749431251184,0.26726366,651.26,650.17,3.81921911]
[1749431251781,0.26726366,651.26,650.21,3.81921911]
[1749431253591,0.26726366,651.26,650.25,3.81921911]
[1749431253987,0.26726366,651.26,650.42,3.81921911]
[1749431254393,0.26726366,651.26,650.4,3.81921911]
[1749431255191,0.26726366,651.26,650.39,3.81921911]
[1749431255691,0.26726366,651.26,650.37,3.81921911]
[1749431257095,0.26726366,651.26,650.19,3.81921911]
[1749431260191,0.26726366,651.26,650.17,3.81921911]
[1749431260794,0.26726366,651.26,650.14,4.12684515]
[1749431261296,0.26726366,651.26,650.15,3.81921911]
[1749431261700,0.26726366,651.26,650.14,4.12684515]
[1749431262096,0.26726366,651.26,650.15,3.81921911]
[1749431262595,0.26726366,651.26,650.14,0.30762604]
[1749431266804,0.57436067,651.26,650.14,0.30762604]
[1749431279314,0.57436067,651.26,650.14,4.12684515]
[1749431279815,0.57436067,651.26,650.15,3.81921911]
[1749431280112,0.57436067,651.26,650.16,3.81921911]
[1749431280713,0.57436067,651.26,650.44,3.81921911]
[1749431281114,0.57436067,651.26,650.43,3.81921911]
[1749431281614,0.57436067,651.26,650.47,3.81921911]
[1749431283815,0.57436067,651.26,650.38,3.81921911]
[1749431284609,0.57436067,651.26,650.37,3.81921911]
[1749431285613,0.57436067,651.26,650.38,3.81921911]
[1749431290617,0.57436067,651.26,650.39,3.81921911]
[1749431293713,0.57436067,651.26,650.37,3.81921911]